fUST/lending_fUST_20250206
["ID","MTS","AMOUNT","RATE_DAILY","PERIOD"]
[351908374,1738834251588,-1421.08318748,0.00014452,2]
[351908375,1738834251597,-1200.0,0.00014458,2]
[351908376,1738834251607,-500.205,0.00014458,2]
[351908377,1738834251616,-4998.85484728,0.000145,2]
[351908378,1738834251625,-500.0,0.0001452,2]
[351908379,1738834251635,-500.0,0.0001452,2]
[351908380,1738834251645,-336.35,0.0001452,2]
[351908381,1738834251655,-500.0,0.0001452,2]
[351908382,1738834251666,-500.0,0.0001452,2]
[351908383,1738834251676,-500.0,0.0001452,2]
[351908384,1738834251686,-574.16,0.0001452,2]
[351908385,1738834251696,-500.0,0.0001452,2]
[351908386,1738834251706,-500.0,0.0001452,2]
[351908387,1738834251716,-500.0,0.0001452,2]
[351908388,1738834251727,-750.92,0.0001452,2]
[351908389,1738834251737,-1106.6,0.0001452,2]
[351908390,1738834251747,-500.0,0.0001452,2]
[351908391,1738834251756,-2675.64,0.0001452,2]
[351908392,1738834251766,-500.0,0.0001452,2]
[351908393,1738834251775,-500.0,0.0001452,2]
[351908394,1738834251785,-500.0,0.0001452,2]
[351908395,1738834251794,-465.47798974,0.0001452,2]
[351908396,1738834251803,-757.91,0.0001452,2]
[351908397,1738834251813,-500.0,0.0001452,2]
[351908398,1738834251822,-1339.04,0.0001452,2]
[351908399,1738834251831,-1309.14,0.0001452,2]
[351908400,1738834251840,-151.0,0.0001452,2]
[351908401,1738834251849,-500.0,0.0001452,2]
[351908402,1738834251859,-616.48,0.0001452,2]
[351908403,1738834251868,-500.0,0.0001452,2]
[351908404,1738834251877,-500.0,0.0001452,2]
[351908405,1738834251887,-500.0,0.0001452,2]
[351908406,1738834251896,-500.0,0.0001452,2]
[351908407,1738834251905,-972.58,0.0001452,2]
[351908408,1738834251915,-1184.34,0.0001452,2]
[351908409,1738834251926,-636.86,0.0001452,2]
[351908410,1738834251937,-500.0,0.0001452,2]
[351908411,1738834251947,-1600.88,0.0001452,2]
[351908412,1738834251956,-500.0,0.0001452,2]
[351908413,1738834251966,-500.0,0.0001452,2]
[351908414,1738834251976,-1110.8,0.0001452,2]
[351908415,1738834251985,-500.0,0.0001452,2]
[351908416,1738834251995,-500.0,0.0001452,2]
[351908417,1738834252006,-621.92,0.0001452,2]
[351908418,1738834252015,-500.0,0.0001452,2]
[351908419,1738834252024,-672.08,0.0001452,2]
[351908420,1738834252034,-429.292153,0.0001452,2]
[351908421,1738834252043,-651.0,0.0001452,2]
[351908422,1738834252053,-429.292153,0.0001452,2]
[351908423,1738834252062,-151.0,0.0001452,2]
[351908424,1738834252071,-500.0,0.0001452,2]
[351908425,1738834252080,-500.0,0.0001452,2]
[351908426,1738834252089,-3154.41,0.0001452,2]
[351908427,1738834252099,-603.7,0.0001452,2]
[351908428,1738834252109,-14070.43,0.0001452,2]
[351908429,1738834252118,-151.0,0.0001452,2]
[351908430,1738834252127,-540.26000189,0.0001452,2]
[351908431,1738834252136,-1109.57,0.0001452,2]
[351908432,1738834252145,-500.0,0.0001452,2]
[351908433,1738834252154,-500.0,0.0001452,2]
[351908434,1738834252164,-570.88527049,0.0001452,2]
[351908435,1738834252173,-500.0,0.0001452,2]
[351908436,1738834252183,-1987.86,0.0001452,2]
[351908437,1738834252192,-1309.28,0.0001452,2]
[351908438,1738834252202,-151.0,0.0001452,2]
[351908439,1738834252211,-500.0,0.0001452,2]
[351908440,1738834252220,-1208.15,0.0001452,2]
[351908441,1738834252229,-819.82,0.0001452,2]
[351908442,1738834252238,-500.0,0.0001452,2]
[351908443,1738834252248,-616.92141906,0.0001452,2]
[351908444,1738834252257,-500.0,0.0001452,2]
[351908445,1738834252266,-1628.53,0.0001452,2]
[351908446,1738834252275,-39499.12,0.0001452,2]
[351908447,1738834252285,-5922.94,0.0001452,2]
[351908448,1738834252294,-4111.34,0.0001452,2]
[351908449,1738834252303,-770.51,0.0001452,2]
[351908450,1738834252313,-1278.1,0.0001452,2]
[351908451,1738834252323,-500.0,0.0001452,2]
[351908452,1738834252332,-2144.49,0.0001452,2]
[351908453,1738834252342,-151.0,0.0001452,2]
[351908454,1738834252351,-371.566934,0.0001452,2]
[351908455,1738834252360,-151.0,0.0001452,2]
[351908456,1738834252370,-371.566934,0.0001452,2]
[351908457,1738834252379,-2149.07,0.0001452,2]
[351908458,1738834252389,-1310.23,0.0001452,2]
[351908459,1738834252398,-500.0,0.0001452,2]
[351908460,1738834252408,-500.0,0.0001452,2]
[351908461,1738834252417,-2053.29,0.0001452,2]
[351908462,1738834252427,-151.0,0.0001452,2]
[351908463,1738834252436,-500.0,0.0001452,2]
[351908464,1738834252446,-862.67,0.0001452,2]
[351908465,1738834252455,-500.0,0.0001452,2]
[351908466,1738834252464,-507.24,0.0001452,2]
[351908467,1738834252474,-500.0,0.0001452,2]
[351908468,1738834252483,-500.0,0.0001452,2]
[351908469,1738834252492,-151.0,0.0001452,2]
[351908470,1738834252502,-151.0,0.0001452,2]
[351908471,1738834252511,-500.0,0.0001452,2]
[351908472,1738834252521,-17417.94,0.0001452,2]
[351908473,1738834252530,-751.92,0.0001452,2]
[351908474,1738834252539,-1569.33,0.0001452,2]
[351908475,1738834252549,-1397.34,0.0001452,2]
[351908476,1738834252558,-500.0,0.0001452,2]
[351908477,1738834252567,-2289.41,0.0001452,2]
[351908478,1738834252576,-1579.54,0.0001452,2]
[351908479,1738834252585,-794.1,0.0001452,2]
[351908480,1738834252594,-500.0,0.0001452,2]
[351908481,1738834252604,-644.26,0.0001452,2]
[351908482,1738834252613,-500.0,0.0001452,2]
[351908483,1738834252622,-151.0,0.0001452,2]
[351908484,1738834252632,-500.0,0.0001452,2]
[351908485,1738834252640,-728.34,0.0001452,2]
[351908486,1738834252650,-930.43,0.0001452,2]
[351908487,1738834252659,-191.392399,0.0001452,2]
[351908488,1738834252668,-500.0,0.0001452,2]
[351908489,1738834252677,-3077.4,0.0001452,2]
[351908490,1738834252687,-1803.23,0.0001452,2]
[351908491,1738834252696,-3627.34,0.0001452,2]
[351908492,1738834252705,-500.0,0.0001452,2]
[351908493,1738834252715,-500.0,0.0001452,2]
[351908494,1738834252724,-711.48,0.0001452,2]
[351908495,1738834252733,-3813.2,0.0001452,2]
[351908496,1738834252742,-1401.9,0.0001452,2]
[351908497,1738834252752,-9551.75,0.0001452,2]
[351908498,1738834252762,-1690.94,0.0001452,2]
[351908499,1738834252771,-804.65,0.0001452,2]
[351908500,1738834252781,-500.0,0.0001452,2]
[351908501,1738834252790,-611.94,0.0001452,2]
[351908502,1738834252800,-1703.23,0.0001452,2]
[351908503,1738834252810,-184.435753,0.0001452,2]
[351908504,1738834252821,-184.435753,0.0001452,2]
[351908505,1738834252831,-761.53,0.0001452,2]
[351908506,1738834252841,-957.43,0.0001452,2]
[351908507,1738834252851,-787.78,0.0001452,2]
[351908508,1738834252861,-815.0,0.0001452,2]
[351908509,1738834252870,-319.297321,0.0001452,2]
[351908510,1738834252879,-3304.36,0.0001452,2]
[351908511,1738834252889,-1461.21,0.0001452,2]
[351908512,1738834252899,-319.297321,0.0001452,2]
[351908513,1738834252909,-708.39,0.0001452,2]
[351908514,1738834252918,-904.145255,0.0001452,2]
[351908515,1738834252930,-500.0,0.0001452,2]
[351908516,1738834252939,-904.145255,0.0001452,2]
[351908517,1738834252949,-3483.26,0.0001452,2]
[351908518,1738834252958,-1098.73,0.0001452,2]
[351908519,1738834252969,-7783.6,0.0001452,2]
[351908520,1738834252979,-565.51962728,0.0001452,2]
[351908521,1738834252989,-794.46,0.0001452,2]
[351908522,1738834252998,-159.523259,0.00014534,3]
[351908523,1738834253009,-160.0,0.00014534,3]
[351908524,1738834253019,-160.0,0.00014534,5]
[351908525,1738834253029,-354.1278896,0.00014548,2]
[351908526,1738834253038,-2558.37688788,0.00014563,2]
[351908527,1738834253047,-354.6875562,0.00014575,2]
[351908528,1738834253057,-1421.08318748,0.0001459,2]
[351908529,1738834253070,-158.61,0.00014611,2]
[351908530,1738834253079,-205.21335912,0.00014656,2]
[351908531,1738834253089,-500.0,0.00014657,2]
[351908532,1738834253099,-500.0,0.00014657,2]
[351908533,1738834253108,-500.0,0.00014657,2]
[351908534,1738834253117,-500.0,0.00014657,2]
[351908535,1738834253127,-500.0,0.00014657,2]
[351908536,1738834253137,-574.16,0.00014657,2]
[351908537,1738834253147,-500.0,0.00014657,2]
[351908538,1738834253158,-500.0,0.00014657,2]
[351908539,1738834253168,-500.0,0.00014657,2]
[351908540,1738834253178,-750.92,0.00014657,2]
[351908541,1738834253187,-1106.6,0.00014657,2]
[351908542,1738834253197,-500.0,0.00014657,2]
[351908543,1738834253207,-2675.64,0.00014657,2]
[351908544,1738834253217,-500.0,0.00014657,2]
[351908545,1738834253227,-500.0,0.00014657,2]
[351908546,1738834253236,-500.0,0.00014657,2]
[351908547,1738834253364,-757.91,0.00014657,2]
[351908548,1738834253375,-1339.04,0.00014657,2]
[351908549,1738834253384,-1309.14,0.00014657,2]
[351908550,1738834253393,-158.646054,0.00014657,2]
[351908551,1738834253403,-500.0,0.00014657,2]
[351908552,1738834253412,-616.48,0.00014657,2]
[351908553,1738834253421,-500.0,0.00014657,2]
[351908554,1738834253430,-500.0,0.00014657,2]
[351908555,1738834253439,-500.0,0.00014657,2]
[351908556,1738834253449,-500.0,0.00014657,2]
[351908557,1738834253458,-972.58,0.00014657,2]
[351908558,1738834253468,-150.12,0.00014657,2]
[351908559,1738834253477,-1184.34,0.00014657,2]
[351908560,1738834253486,-636.86,0.00014657,2]
[351908561,1738834253496,-500.0,0.00014657,2]
[351908562,1738834253506,-1600.88,0.00014657,2]
[351908563,1738834253515,-500.0,0.00014657,2]
[351908564,1738834253524,-500.0,0.00014657,2]
[351908565,1738834253534,-1110.8,0.00014657,2]
[351908566,1738834253543,-500.0,0.00014657,2]
[351908567,1738834253552,-500.0,0.00014657,2]
[351908568,1738834253562,-621.92,0.00014657,2]
[351908569,1738834253575,-500.0,0.00014657,2]
[351908570,1738834253588,-672.08,0.00014657,2]
[351908571,1738834253597,-429.292153,0.00014657,2]
[351908572,1738834253608,-651.0,0.00014657,2]
[351908573,1738834253617,-429.292153,0.00014657,2]
[351908574,1738834253626,-151.0,0.00014657,2]
[351908575,1738834253636,-500.0,0.00014657,2]
[351908576,1738834253645,-500.0,0.00014657,2]
[351908577,1738834253655,-3154.41,0.00014657,2]
[351908578,1738834253664,-603.7,0.00014657,2]
[351908579,1738834253673,-14070.43,0.00014657,2]
[351908580,1738834253683,-151.0,0.00014657,2]
[351908581,1738834253692,-500.0,0.00014657,2]
[351908582,1738834253702,-150.12,0.00014657,2]
[351908583,1738834253711,-1109.57,0.00014657,2]
[351908584,1738834253720,-150.12,0.00014657,2]
[351908585,1738834253729,-500.0,0.00014657,2]
[351908586,1738834253738,-500.0,0.00014657,2]
[351908587,1738834253747,-150.12,0.00014657,2]
[351908588,1738834253757,-150.12,0.00014657,2]
[351908589,1738834253766,-500.0,0.00014657,2]
[351908590,1738834253776,-1987.86,0.00014657,2]
[351908591,1738834253785,-1309.28,0.00014657,2]
[351908592,1738834253795,-228.851831,0.00014657,2]
[351908593,1738834253804,-500.0,0.00014657,2]
[351908594,1738834253814,-1208.15,0.00014657,2]
[351908595,1738834253823,-819.82,0.00014657,2]
[351908596,1738834253832,-500.0,0.00014657,2]
[351908597,1738834253841,-500.0,0.00014657,2]
[351908598,1738834253851,-1628.53,0.00014657,2]
[351908599,1738834253860,-39499.12,0.00014657,2]
[351908600,1738834253870,-5922.94,0.00014657,2]
[351908601,1738834253879,-4111.34,0.00014657,2]
[351908602,1738834253889,-770.51,0.00014657,2]
[351908603,1738834253898,-1278.1,0.00014657,2]
[351908604,1738834253908,-500.0,0.00014657,2]
[351908605,1738834253917,-2144.49,0.00014657,2]
[351908606,1738834253928,-151.0,0.00014657,2]
[351908607,1738834253940,-371.566934,0.00014657,2]
[351908608,1738834253948,-151.0,0.00014657,2]
[351908609,1738834253958,-371.566934,0.00014657,2]
[351908610,1738834253968,-2149.07,0.00014657,2]
[351908611,1738834253979,-1310.23,0.00014657,2]
[351908612,1738834253989,-500.0,0.00014657,2]
[351908613,1738834253999,-500.0,0.00014657,2]
[351908614,1738834254009,-2053.29,0.00014657,2]
[351908615,1738834254018,-151.0,0.00014657,2]
[351908616,1738834254028,-500.0,0.00014657,2]
[351908617,1738834254037,-862.67,0.00014657,2]
[351908618,1738834254047,-500.0,0.00014657,2]
[351908619,1738834254057,-507.24,0.00014657,2]
[351908620,1738834254066,-500.0,0.00014657,2]
[351908621,1738834254076,-500.0,0.00014657,2]
[351908622,1738834254086,-277.473508,0.00014657,2]
[351908623,1738834254096,-151.0,0.00014657,2]
[351908624,1738834254105,-500.0,0.00014657,2]
[351908625,1738834254114,-17417.94,0.00014657,2]
[351908626,1738834254124,-751.92,0.00014657,2]
[351908627,1738834254134,-1569.33,0.00014657,2]
[351908628,1738834254143,-1397.34,0.00014657,2]
[351908629,1738834254153,-500.0,0.00014657,2]
[351908630,1738834254162,-2289.41,0.00014657,2]
[351908631,1738834254171,-1579.54,0.00014657,2]
[351908632,1738834254181,-794.1,0.00014657,2]
[351908633,1738834254191,-500.0,0.00014657,2]
[351908634,1738834254200,-644.26,0.00014657,2]
[351908635,1738834254216,-500.0,0.00014657,2]
[351908636,1738834254225,-151.0,0.00014657,2]
[351908637,1738834254235,-500.0,0.00014657,2]
[351908638,1738834254244,-728.34,0.00014657,2]
[351908639,1738834254254,-930.43,0.00014657,2]
[351908640,1738834254264,-500.0,0.00014657,2]
[351908641,1738834254274,-3077.4,0.00014657,2]
[351908642,1738834254283,-1803.23,0.00014657,2]
[351908643,1738834254292,-3627.34,0.00014657,2]
[351908644,1738834254302,-500.0,0.00014657,2]
[351908645,1738834254313,-500.0,0.00014657,2]
[351908646,1738834254324,-711.48,0.00014657,2]
[351908647,1738834254337,-3813.2,0.00014657,2]
[351908648,1738834254347,-1401.9,0.00014657,2]
[351908649,1738834254356,-500.0,0.00014657,2]
[351908650,1738834254366,-500.0,0.00014657,2]
[351908651,1738834254375,-9551.75,0.00014657,2]
[351908652,1738834254384,-1690.94,0.00014657,2]
[351908653,1738834254398,-804.65,0.00014657,2]
[351908654,1738834254407,-500.0,0.00014657,2]
[351908655,1738834254417,-500.0,0.00014657,2]
[351908656,1738834254426,-150.12,0.00014657,2]
[351908657,1738834254435,-150.12,0.00014657,2]
[351908658,1738834254445,-611.94,0.00014657,2]
[351908659,1738834254455,-777.0,0.00014657,2]
[351908660,1738834254464,-1703.23,0.00014657,2]
[351908661,1738834254473,-150.15,0.00014657,2]
[351908662,1738834254483,-500.0,0.00014657,2]
[351908663,1738834254492,-150.12,0.00014657,2]
[351908664,1738834254502,-184.435753,0.00014657,2]
[351908665,1738834254512,-184.435753,0.00014657,2]
[351908666,1738834254521,-761.53,0.00014657,2]
[351908667,1738834254531,-957.43,0.00014657,2]
[351908668,1738834254540,-787.78,0.00014657,2]
[351908669,1738834254549,-815.0,0.00014657,2]
[351908670,1738834254558,-500.0,0.00014657,2]
[351908671,1738834254569,-319.297321,0.00014657,2]
[351908672,1738834254579,-3304.36,0.00014657,2]
[351908673,1738834254589,-1461.21,0.00014657,2]
[351908674,1738834254599,-319.297321,0.00014657,2]
[351908675,1738834254608,-708.39,0.00014657,2]
[351908676,1738834254617,-904.145255,0.00014657,2]
[351908677,1738834254626,-500.0,0.00014657,2]
[351908678,1738834254635,-904.145255,0.00014657,2]
[351908679,1738834254644,-3483.26,0.00014657,2]
[351908680,1738834254654,-1098.73,0.00014657,2]
[351908681,1738834254663,-7783.6,0.00014657,2]
[351908682,1738834254673,-794.46,0.00014657,2]
[351908683,1738834254682,-163.0,0.00014714,2]
[351908684,1738834254692,-163.0,0.00014714,2]
[351908685,1738834254702,-163.0,0.00014714,2]
[351908686,1738834254711,-163.0,0.00014714,2]
[351908687,1738834254721,-163.0,0.00014714,2]
[351908688,1738834254730,-166.93,0.00014714,2]
[351908689,1738834254740,-153.0,0.00014714,2]
[351908690,1738834254749,-153.0,0.00014714,2]
[351908691,1738834254758,-153.0,0.00014714,2]
[351908692,1738834254768,-153.0,0.00014714,2]
[351908693,1738834254778,-153.0,0.00014714,2]
[351908694,1738834254787,-153.0,0.00014714,2]
[351908695,1738834254797,-153.0,0.00014714,2]
[351908696,1738834254806,-153.0,0.00014714,2]
[351908697,1738834254816,-153.0,0.00014714,2]
[351908698,1738834254826,-153.0,0.00014714,2]
[351908699,1738834254835,-153.0,0.00014714,2]
[351908700,1738834254844,-153.0,0.00014714,2]
[351908701,1738834254854,-153.0,0.00014714,2]
[351908702,1738834254863,-153.0,0.00014714,2]
[351908703,1738834254873,-153.0,0.00014714,2]
[351908704,1738834254883,-153.0,0.00014714,2]
[351908705,1738834254892,-153.0,0.00014714,2]
[351908706,1738834254902,-169.0,0.00014714,2]
[351908707,1738834254911,-1421.08318748,0.00014728,2]
[351908708,1738834254921,-154.0,0.0001478,2]
[351908709,1738834254933,-154.0,0.0001478,2]
[351908710,1738834254943,-154.0,0.0001478,2]
[351908711,1738834254952,-156.99,0.0001478,2]
[351908712,1738834254961,-152.0,0.0001478,2]
[351908713,1738834254971,-152.0,0.0001478,2]
[351908714,1738834254981,-152.0,0.0001478,2]
[351908715,1738834254990,-155.13,0.0001478,2]
[351908716,1738834255001,-500.0,0.00014794,2]
[351908717,1738834255013,-500.0,0.00014794,2]
[351908718,1738834255022,-500.0,0.00014794,2]
[351908719,1738834255032,-500.0,0.00014794,2]
[351908720,1738834255042,-500.0,0.00014794,2]
[351908721,1738834255051,-574.16,0.00014794,2]
[351908722,1738834255060,-500.0,0.00014794,2]
[351908723,1738834255071,-500.0,0.00014794,2]
[351908724,1738834255080,-500.0,0.00014794,2]
[351908725,1738834255090,-750.92,0.00014794,2]
[351908726,1738834255099,-1106.6,0.00014794,2]
[351908727,1738834255109,-500.0,0.00014794,2]
[351908728,1738834255119,-2675.64,0.00014794,2]
[351908729,1738834255129,-500.0,0.00014794,2]
[351908730,1738834255138,-500.0,0.00014794,2]
[351908731,1738834255148,-500.0,0.00014794,2]
[351908732,1738834255158,-757.91,0.00014794,2]
[351908733,1738834255167,-1339.04,0.00014794,2]
[351908734,1738834255177,-1309.14,0.00014794,2]
[351908735,1738834255186,-616.48,0.00014794,2]
[351908736,1738834255196,-500.0,0.00014794,2]
[351908737,1738834255206,-500.0,0.00014794,2]
[351908738,1738834255217,-500.0,0.00014794,2]
[351908739,1738834255227,-389.54491019,0.00014794,2]
[351908740,1738834255236,-972.58,0.00014794,2]
[351908741,1738834255246,-1184.34,0.00014794,2]
[351908742,1738834255256,-636.86,0.00014794,2]
[351908743,1738834255265,-500.0,0.00014794,2]
[351908744,1738834255275,-1600.88,0.00014794,2]
[351908745,1738834255284,-500.0,0.00014794,2]
[351908746,1738834255293,-500.0,0.00014794,2]
[351908747,1738834255303,-1110.8,0.00014794,2]
[351908748,1738834255312,-500.0,0.00014794,2]
[351908749,1738834255325,-500.0,0.00014794,2]
[351908750,1738834255336,-621.92,0.00014794,2]
[351908751,1738834255345,-500.0,0.00014794,2]
[351908752,1738834255355,-672.08,0.00014794,2]
[351908753,1738834255364,-429.292153,0.00014794,2]
[351908754,1738834255374,-651.0,0.00014794,2]
[351908755,1738834255383,-429.292153,0.00014794,2]
[351908756,1738834255392,-151.0,0.00014794,2]
[351908757,1738834255402,-500.0,0.00014794,2]
[351908758,1738834255413,-500.0,0.00014794,2]
[351908759,1738834255422,-3154.41,0.00014794,2]
[351908760,1738834255431,-603.7,0.00014794,2]
[351908761,1738834255441,-14070.43,0.00014794,2]
[351908762,1738834255450,-151.0,0.00014794,2]
[351908763,1738834255460,-1109.57,0.00014794,2]
[351908764,1738834255469,-258.14,0.00014794,2]
[351908765,1738834255479,-500.0,0.00014794,2]
[351908766,1738834255488,-500.0,0.00014794,2]
[351908767,1738834255498,-1987.86,0.00014794,2]
[351908768,1738834255508,-1309.28,0.00014794,2]
[351908769,1738834255517,-500.0,0.00014794,2]
[351908770,1738834255527,-1208.15,0.00014794,2]
[351908771,1738834255536,-819.82,0.00014794,2]
[351908772,1738834255545,-500.0,0.00014794,2]
[351908773,1738834255554,-500.0,0.00014794,2]
[351908774,1738834255564,-1628.53,0.00014794,2]
[351908775,1738834255576,-39499.12,0.00014794,2]
[351908776,1738834255586,-5922.94,0.00014794,2]
[351908777,1738834255595,-4111.34,0.00014794,2]
[351908778,1738834255604,-770.51,0.00014794,2]
[351908779,1738834255614,-1278.1,0.00014794,2]
[351908780,1738834255623,-500.0,0.00014794,2]
[351908781,1738834255633,-2144.49,0.00014794,2]
[351908782,1738834255642,-151.0,0.00014794,2]
[351908783,1738834255651,-371.566934,0.00014794,2]
[351908784,1738834255660,-151.0,0.00014794,2]
[351908785,1738834255670,-371.566934,0.00014794,2]
[351908786,1738834255679,-2149.07,0.00014794,2]
[351908787,1738834255689,-1310.23,0.00014794,2]
[351908788,1738834255699,-500.0,0.00014794,2]
[351908789,1738834255708,-500.0,0.00014794,2]
[351908790,1738834255718,-2053.29,0.00014794,2]
[351908791,1738834255728,-151.0,0.00014794,2]
[351908792,1738834255851,-500.0,0.00014794,2]
[351908793,1738834255861,-862.67,0.00014794,2]
[351908794,1738834255871,-500.0,0.00014794,2]
[351908795,1738834255881,-507.24,0.00014794,2]
[351908796,1738834255891,-500.0,0.00014794,2]
[351908797,1738834255901,-500.0,0.00014794,2]
[351908798,1738834255910,-151.0,0.00014794,2]
[351908799,1738834255921,-500.0,0.00014794,2]
[351908800,1738834255933,-17417.94,0.00014794,2]
[351908801,1738834255944,-751.92,0.00014794,2]
[351908802,1738834255954,-1569.33,0.00014794,2]
[351908803,1738834255963,-1397.34,0.00014794,2]
[351908804,1738834255974,-500.0,0.00014794,2]
[351908805,1738834255984,-2289.41,0.00014794,2]
[351908806,1738834255994,-1579.54,0.00014794,2]
[351908807,1738834256003,-794.1,0.00014794,2]
[351908808,1738834256015,-500.0,0.00014794,2]
[351908809,1738834256025,-1000.0,0.00014794,2]
[351908810,1738834256034,-644.26,0.00014794,2]
[351908811,1738834256044,-500.0,0.00014794,2]
[351908812,1738834256054,-151.0,0.00014794,2]
[351908813,1738834256063,-500.0,0.00014794,2]
[351908814,1738834256075,-728.34,0.00014794,2]
[351908815,1738834256086,-930.43,0.00014794,2]
[351908816,1738834256095,-500.0,0.00014794,2]
[351908817,1738834256105,-3077.4,0.00014794,2]
[351908818,1738834256115,-1803.23,0.00014794,2]
[351908819,1738834256125,-3627.34,0.00014794,2]
[351908820,1738834256135,-500.0,0.00014794,2]
[351908821,1738834256144,-500.0,0.00014794,2]
[351908822,1738834256154,-711.48,0.00014794,2]
[351908823,1738834256163,-3813.2,0.00014794,2]
[351908824,1738834256172,-1401.9,0.00014794,2]
[351908825,1738834256181,-1217.33134236,0.00014794,2]
[351908826,1738834256204,-8334.41865764,0.00014794,2]
[351908827,1738834256213,-1690.94,0.00014794,2]
[351908828,1738834256223,-804.65,0.00014794,2]
[351908829,1738834256232,-500.0,0.00014794,2]
[351908830,1738834256242,-611.94,0.00014794,2]
[351908831,1738834256251,-1703.23,0.00014794,2]
[351908832,1738834256260,-184.435753,0.00014794,2]
[351908833,1738834256269,-184.435753,0.00014794,2]
[351908834,1738834256279,-761.53,0.00014794,2]
[351908835,1738834256288,-957.43,0.00014794,2]
[351908836,1738834256298,-787.78,0.00014794,2]
[351908837,1738834256307,-815.0,0.00014794,2]
[351908838,1738834256317,-319.297321,0.00014794,2]
[351908839,1738834256327,-3304.36,0.00014794,2]
[351908840,1738834256339,-1461.21,0.00014794,2]
[351908841,1738834256352,-319.297321,0.00014794,2]
[351908842,1738834256361,-708.39,0.00014794,2]
[351908843,1738834256370,-904.145255,0.00014794,2]
[351908844,1738834256380,-500.0,0.00014794,2]
[351908845,1738834256392,-904.145255,0.00014794,2]
[351908846,1738834256402,-3483.26,0.00014794,2]
[351908847,1738834256411,-1098.73,0.00014794,2]
[351908848,1738834256420,-7783.6,0.00014794,2]
[351908849,1738834256430,-794.46,0.00014794,2]
[351908850,1738834256439,-435.40281433,0.00014827,2]
[351908851,1738834256448,-1000.0,0.00014847,2]
[351908852,1738834256458,-1421.08318748,0.00014866,2]
[351908853,1738834256469,-567.99023724,0.000149,2]
[351908854,1738834256478,-2000.0,0.000149,2]
[351908855,1738834256491,-288.60561335,0.000149,2]
[351908856,1738834256503,-1000.0,0.00014909,2]
[351908857,1738834256512,-237.33452895,0.00014931,2]
[351908858,1738834256522,-500.0,0.00014931,2]
[351908859,1738834256531,-195.85377187,0.00014931,2]
[351908860,1738834256541,-150.12,0.00014931,2]
[351908861,1738834256551,-151.88645934,0.00014931,2]
[351908862,1738834256560,-215.57344732,0.00014931,2]
[351908863,1738834256571,-500.0,0.00014931,2]
[351908864,1738834256582,-500.0,0.00014931,2]
[351908865,1738834256591,-500.0,0.00014931,2]
[351908866,1738834256601,-217.56964318,0.00014931,2]
[351908867,1738834256610,-777.0,0.00014931,2]
[351908868,1738834256619,-500.0,0.00014931,2]
[351908869,1738834256630,-500.0,0.00014931,2]
[351908870,1738834256639,-500.0,0.00014931,2]
[351908871,1738834256649,-500.0,0.00014931,2]
[351908872,1738834256662,-500.0,0.00014931,2]
[351908873,1738834256675,-284.18997083,0.00014931,2]